bitfinex-derivatives/quotes_SOLF0:USTF0_20260104
["timestamp","ask_amount","ask_price","bid_price","bid_amount"]
[1767489374901,4.00813807,134.57,134.51,5.00376471]
[1767489375308,4.00813807,134.57,134.51,3.80143717]
[1767489375510,4.00813807,134.57,134.49,5.00376471]
[1767489375807,0.05311313,134.54,134.52,0.05170388]
[1767489377910,5.21046561,134.53,134.46,3.80143717]
[1767489378111,4.00813807,134.52,134.46,3.80143717]
[1767489378412,4.00813807,134.54,134.47,5.00376471]
[1767489379015,0.05359934,134.52,134.49,0.04980644]
[1767489379510,4.06173741,134.52,134.49,0.04980644]
[1767489380013,0.05359934,134.52,134.49,0.04980644]
[1767489380511,5.21046561,134.56,134.49,3.85124361]
[1767489381314,4.00813807,134.55,134.49,3.85124361]
[1767489381510,4.00813807,134.57,134.5,5.00376471]
[1767489381815,0.05707611,134.53,134.52,0.05708354]
[1767489382006,0.05357137,134.54,134.52,0.05708354]
[1767489384312,4.00813807,134.57,134.52,0.05708354]
[1767489384621,4.00813807,134.59,134.53,3.80143717]
[1767489385619,0.04897784,134.57,134.55,0.05635857]
[1767489385816,4.00813807,134.59,134.55,0.05635857]
[1767489386008,91.84813807,134.61,134.55,0.05635857]
[1767489386203,4.00813807,134.6,134.55,0.05635857]
[1767489386814,0.05348126,134.59,134.55,0.05635857]
[1767489390422,0.05348126,134.59,134.55,4.07775737]
[1767489390623,10.50245053,134.64,134.56,1.88082603]
[1767489390921,3.81475053,134.63,134.56,5.90222483]
[1767489391618,0.04634909,134.61,134.58,0.04836191]
[1767489394823,3.93266623,134.61,134.58,0.04836191]
[1767489398026,0.04634909,134.61,134.58,0.04836191]
[1767489400422,0.04634909,134.61,134.58,3.72313561]
[1767489400721,3.88631714,134.67,134.59,3.6747737]
[1767489400924,5.78961422,134.66,134.59,3.6747737]
[1767489401124,3.88631714,134.67,134.6,3.6747737]
[1767489401322,5.78799437,134.66,134.6,3.6747737]
[1767489401520,3.88631714,134.67,134.6,3.6747737]
[1767489401717,5.78835609,134.66,134.6,3.6747737]
[1767489401917,3.88631714,134.67,134.62,0.05117055]
[1767489402414,9.67315789,134.66,134.62,0.05117055]
[1767489402722,3.88631714,134.66,134.62,0.05117055]
[1767489402927,3.88631714,134.67,134.62,0.05117055]
[1767489412735,3.88631714,134.66,134.58,3.6747737]
[1767489413839,0.04808445,134.63,134.61,0.05559758]
[1767489417846,3.93440159,134.63,134.56,3.6747737]
[1767489418842,0.04808445,134.63,134.58,0.05348281]
[1767489419045,3.93440159,134.63,134.58,0.05348281]
[1767489421757,3.73761366,134.6,134.52,91.62393547]
[1767489422045,3.73761366,134.6,134.5,3.84393547]
[1767489422545,3.73761366,134.6,134.53,3.84393547]
[1767489422748,0.04835075,134.58,134.55,0.05368148]
[1767489423544,0.04835075,134.58,134.55,3.89761695]
[1767489424345,0.04835075,134.58,134.55,0.05368148]
[1767489425547,5.61843969,134.63,134.55,3.89761695]
[1767489425844,3.73761366,134.61,134.55,3.89761695]
[1767489426652,0.04744404,134.59,134.55,3.89761695]
[1767489429348,3.73761366,134.63,134.55,3.89761695]
[1767489429553,5.79682604,134.62,134.55,3.89761695]
[1767489429752,3.73761366,134.63,134.55,3.89761695]
[1767489430253,5.7977638,134.62,134.55,3.89761695]
[1767489430450,0.0509045,134.6,134.55,3.89761695]
[1767489430646,0.0509045,134.6,134.56,0.05142951]
[1767489437141,0.0509045,134.6,134.52,3.84393547]
[1767489437142,3.78851816,134.6,134.52,3.84393547]
[1767489437345,3.73761366,134.57,134.46,106.04312603]
[1767489437544,3.73761366,134.55,134.47,3.84393547]
[1767489437748,3.73761366,134.57,134.47,3.84393547]
[1767489438050,5.80301783,134.56,134.47,3.84393547]
[1767489438254,0.05080984,134.53,134.5,0.05011436]
[1767489441458,3.7884235,134.53,134.45,121.30925012]
[1767489441755,3.7884235,134.53,134.45,107.48691027]
[1767489441943,3.7884235,134.53,134.45,19.66691027]
[1767489442143,3.7884235,134.53,134.45,15.8229748]
[1767489442450,3.73761366,134.51,134.45,19.66691027]
[1767489442851,0.05420067,134.49,134.47,0.05625086]
[1767489443251,0.05420067,134.49,134.45,15.8229748]
[1767489443252,3.79181433,134.49,134.45,15.8229748]
[1767489444148,3.79181433,134.49,134.46,0.05282623]
[1767489444551,3.79181433,134.49,134.45,15.8229748]
[1767489444552,3.79181433,134.49,134.45,14.74361834]
[1767489445363,3.79181433,134.49,134.41,3.84393547]
[1767489445556,3.79181433,134.49,134.44,0.0498773]
[1767489445754,0.05420067,134.49,134.44,3.89381277]
[1767489450658,3.82705276,134.49,134.44,0.0498773]
[1767489450862,5.03226908,134.49,134.44,0.0498773]
[1767489451063,3.77285209,134.48,134.44,0.0498773]
[1767489455664,3.77285209,134.48,134.42,3.79747394]
[1767489455858,3.77285209,134.48,134.4,5.06284834]
[1767489456260,3.77285209,134.48,134.41,3.85763202]
[1767489456551,3.68324595,134.5,134.43,3.85763202]
[1767489456758,0.05392457,134.48,134.45,0.04683408]
[1767489457458,0.05392457,134.48,134.45,3.9044661]
[1767489458252,3.68324595,134.52,134.46,5.06284834]
[1767489459361,0.04960788,134.5,134.47,3.85763202]
[1767489459569,0.04960788,134.5,134.47,3.91033094]
[1767489459868,91.56324595,134.54,134.48,5.06284834]
[1767489460562,3.68324595,134.53,134.47,0.05269892]
[1767489460762,4.88846227,134.52,134.47,0.05269892]
[1767489460959,0.04977433,134.51,134.47,5.11554726]
[1767489461160,0.04977433,134.51,134.47,3.91033094]
[1767489461357,0.04977433,134.51,134.47,0.05269892]
[1767489461556,3.73302028,134.51,134.47,0.05269892]
[1767489461761,3.73302028,134.51,134.44,1.20521632]
[1767489462170,4.9382366,134.51,134.44,1.20521632]
[1767489462670,3.73302028,134.51,134.46,0.04996412]
[1767489462877,4.9382366,134.51,134.46,0.04996412]
[1767489464374,3.73302028,134.51,134.46,0.04996412]
[1767489470078,3.73302028,134.51,134.46,3.90759614]
[1767489470079,0.04977433,134.51,134.46,3.90759614]
[1767489473283,10.42712028,134.51,134.46,0.04996412]
[1767489474891,3.73302028,134.51,134.46,0.04996412]
[1767489478489,9.47768333,134.5,134.46,0.04996412]
[1767489478693,4.88846227,134.5,134.46,0.04996412]
[1767489478891,3.68324595,134.49,134.43,3.85763202]
[1767489479185,3.68324595,134.47,134.41,5.06284834]
[1767489479385,3.68324595,134.47,134.41,3.85763202]
[1767489479890,3.68324595,134.47,134.43,0.05494675]
[1767489480094,0.04928927,134.45,134.43,0.05494675]
[1767489480296,0.04928927,134.45,134.41,3.85763202]
[1767489480297,3.73858538,134.45,134.38,22.39656434]
[1767489481484,3.73858538,134.45,134.4,0.05200069]
[1767489481897,0.04928927,134.45,134.41,3.85792006]
[1767489482593,4.89451243,134.49,134.41,3.85792006]
[1767489482796,5.81341164,134.48,134.41,3.85792006]
[1767489483097,5.81341164,134.47,134.41,3.85792006]
[1767489483498,0.0524198,134.45,134.43,0.05218554]
[1767489484297,0.0524198,134.45,134.39,3.85792006]
[1767489484885,0.0524198,134.45,134.4,3.85792006]
[1767489485300,0.0524198,134.45,134.41,3.9124708]
[1767489486805,0.0524198,134.45,134.41,0.05455074]
[1767489487900,5.81995285,134.44,134.41,0.05455074]
[1767489488205,0.0524198,134.45,134.41,0.05455074]
[1767489490411,5.8180027,134.44,134.41,0.05455074]
[1767489490707,4.94693223,134.45,134.41,0.05455074]
[1767489490898,5.81840604,134.44,134.41,0.05455074]
[1767489491099,4.94693223,134.45,134.41,0.05455074]
[1767489491297,5.81703765,134.44,134.41,0.05455074]
[1767489491602,4.94693223,134.45,134.41,0.05455074]
[1767489491804,9.50607414,134.44,134.41,0.05455074]
[1767489492005,3.68929611,134.44,134.38,18.53864428]
[1767489492599,10.71024536,134.43,134.38,17.33342796]
[1767489492798,3.68929611,134.42,134.35,3.85792006]
[1767489493005,0.05300481,134.4,134.37,0.05597322]
[1767489494806,3.74230092,134.4,134.32,10.56102006]
[1767489495006,3.74230092,134.4,134.33,3.85792006]
[1767489495308,4.94751724,134.4,134.33,3.85792006]
[1767489495508,3.68929611,134.39,134.33,3.85792006]
[1767489495799,3.68929611,134.39,134.35,0.05326799]
[1767489496406,4.89451243,134.39,134.35,0.05326799]
[1767489498513,3.68929611,134.39,134.35,0.05326799]
[1767489498710,1.25822113,134.4,134.35,0.05326799]
[1767489499209,4.89451243,134.38,134.31,3.85792006]
[1767489499711,4.89451243,134.38,134.31,5.06313638]
[1767489500014,4.89451243,134.38,134.31,3.85792006]
[1767489500213,0.04797329,134.36,134.32,3.85792006]
[1767489500510,1.20521632,134.39,134.33,3.90895]
[1767489501404,0.05011738,134.37,134.33,3.90895]
[1767489502316,3.68929611,134.4,134.34,3.85792006]
[1767489503416,0.05520153,134.38,134.34,3.85792006]
[1767489503715,0.05520153,134.38,134.33,0.05102994]
[1767489503912,0.05520153,134.38,134.33,5.11416632]
[1767489504413,0.05520153,134.38,134.33,3.90895]
[1767489505514,6.6982,134.43,134.35,3.85792006]
[1767489505709,3.68929611,134.42,134.35,3.85792006]
[1767489506410,4.89451243,134.44,134.37,3.85792006]
[1767489506612,0.05129086,134.42,134.39,0.05107505]
[1767489506816,3.74058697,134.42,134.35,11.76463638]
[1767489507819,3.74058697,134.42,134.37,0.05106931]
[1767489509419,3.74058697,134.42,134.33,3.85792006]
[1767489509420,3.68929611,134.4,134.33,3.85792006]
[1767489510519,0.05666755,134.38,134.35,0.05150279]
[1767489511821,4.06950267,134.38,134.31,3.91007843]
[1767489512711,3.80381517,134.37,134.31,3.91007843]
[1767489513018,3.80381517,134.37,134.33,0.05057346]
[1767489513621,3.80381517,134.37,134.31,3.91007843]
[1767489514620,3.80381517,134.37,134.33,0.05446126]
[1767489515218,0.05666755,134.38,134.33,3.89659801]
[1767489522529,3.86048272,134.38,134.33,0.05446126]
[1767489525230,3.80381517,134.37,134.33,0.05446126]
[1767489528430,0.05666755,134.38,134.33,0.05446126]
[1767489528632,0.05666755,134.38,134.33,3.89659801]
[1767489539960,5.84538153,134.37,134.33,3.89659801]
[1767489540161,0.05666755,134.38,134.33,3.89659801]
[1767489540961,5.84525348,134.37,134.33,3.89659801]
[1767489541253,0.05666755,134.38,134.33,3.89659801]
[1767489541451,5.84527317,134.37,134.33,3.89659801]
[1767489541643,0.05666755,134.38,134.33,3.89659801]
[1767489541847,5.84530584,134.37,134.33,3.89659801]
[1767489542048,0.05666755,134.38,134.33,3.89659801]
[1767489542245,5.84511245,134.37,134.33,3.89659801]
[1767489542451,0.05666755,134.38,134.33,3.89659801]
[1767489542649,5.84532204,134.37,134.33,3.89659801]
[1767489542860,0.05666755,134.38,134.33,3.89659801]
[1767489543045,5.84532204,134.37,134.33,3.89659801]
[1767489543249,0.05666755,134.38,134.33,3.89659801]
[1767489543449,5.84535923,134.37,134.33,3.89659801]
[1767489543650,0.05666755,134.38,134.33,3.89659801]
[1767489544558,5.8454479,134.37,134.33,3.89659801]
[1767489544762,0.05666755,134.38,134.33,3.89659801]
[1767489544960,5.84576535,134.37,134.33,3.89659801]
[1767489545164,0.05666755,134.38,134.33,3.89659801]
[1767489545356,5.8457375,134.37,134.33,3.89659801]
[1767489545552,0.05666755,134.38,134.33,3.89659801]
[1767489549268,5.84558955,134.37,134.33,0.05446126]
[1767489549459,3.89832541,134.38,134.33,0.05446126]
[1767489549765,5.84588462,134.37,134.33,0.05446126]
[1767489549966,5.84588462,134.36,134.33,0.05446126]
[1767489550158,3.89832541,134.38,134.33,0.05446126]
[1767489550360,5.84584824,134.37,134.33,0.05446126]
[1767489550565,5.84584824,134.36,134.33,0.05446126]
[1767489550865,3.89832541,134.38,134.33,0.05446126]
[1767489551065,5.84584824,134.37,134.33,0.05446126]
[1767489551355,5.84584824,134.36,134.33,0.05446126]
[1767489551554,3.89832541,134.38,134.33,0.05446126]
[1767489551755,9.68781856,134.37,134.33,0.05446126]
[1767489551955,5.8461607,134.36,134.33,0.05446126]
[1767489552574,9.68781856,134.36,134.33,0.05446126]
[1767489552874,5.84767745,134.35,134.29,3.91487829]
[1767489553065,5.84767745,134.34,134.29,3.91487829]
[1767489553374,3.84165786,134.36,134.29,3.91487829]
[1767489553572,5.84924015,134.35,134.29,3.91487829]
[1767489553771,0.05421241,134.33,134.31,0.04720859]
[1767489554474,3.84165786,134.36,134.31,3.96208688]
[1767489554771,5.90746572,134.35,134.31,3.96208688]
[1767489554961,5.90746572,134.34,134.31,3.96208688]
[1767489555159,3.84165786,134.36,134.31,3.96208688]
[1767489555365,5.90678764,134.35,134.31,0.04720859]
[1767489555571,5.90678764,134.34,134.31,0.04720859]
[1767489555770,0.05037345,134.35,134.31,0.04720859]
[1767489555975,5.90693213,134.34,134.31,0.04720859]
[1767489556165,5.90646633,134.33,134.31,0.04720859]
[1767489556365,3.89203131,134.35,134.31,0.04720859]
[1767489556566,5.90646788,134.34,134.31,0.04720859]
[1767489556872,5.90646788,134.33,134.31,0.04720859]
[1767489557072,3.89203131,134.35,134.31,0.04720859]
[1767489557273,5.90524901,134.34,134.31,0.04720859]
[1767489557571,5.90524901,134.33,134.31,0.04720859]
[1767489557772,3.89203131,134.35,134.31,0.04720859]
[1767489557973,5.90524901,134.34,134.31,0.04720859]
[1767489558180,5.90524901,134.33,134.31,0.04720859]
[1767489558376,3.89203131,134.35,134.31,0.04720859]
[1767489558577,5.9042938,134.34,134.31,0.04720859]
[1767489558777,5.9042938,134.33,134.31,0.04720859]
[1767489558970,3.89203131,134.35,134.31,0.04720859]
[1767489559171,5.9042938,134.34,134.31,0.04720859]
[1767489559371,5.9042938,134.33,134.31,0.04720859]
[1767489559674,0.05037345,134.35,134.31,3.96208688]
[1767489559874,5.90320986,134.34,134.31,3.96208688]
[1767489560076,0.05037345,134.35,134.31,3.96208688]
[1767489560274,5.90280284,134.34,134.31,3.96208688]
[1767489560579,0.05037345,134.35,134.31,3.96208688]
[1767489560782,5.90293935,134.34,134.31,3.96208688]
[1767489561074,0.05037345,134.35,134.31,3.96208688]
[1767489561280,5.9023058,134.34,134.31,3.96208688]
[1767489561481,0.05037345,134.35,134.31,3.96208688]
[1767489561776,5.90216931,134.34,134.31,0.04720859]
[1767489561973,0.05037345,134.35,134.31,0.04720859]
[1767489562172,5.9023058,134.34,134.31,0.04720859]
[1767489562471,0.05037345,134.35,134.31,0.04720859]
[1767489562677,5.90175283,134.34,134.31,0.04720859]
[1767489562878,0.05037345,134.35,134.31,0.04720859]
[1767489563079,5.90175283,134.34,134.31,0.04720859]
[1767489563282,0.05037345,134.35,134.31,0.04720859]
[1767489563580,5.9014148,134.34,134.31,0.04720859]
[1767489563771,0.05037345,134.35,134.31,0.04720859]
[1767489563968,5.9014148,134.34,134.31,0.04720859]
[1767489564172,0.05037345,134.35,134.31,0.04720859]
[1767489564372,5.90090726,134.34,134.31,0.04720859]
[1767489564573,0.05037345,134.35,134.31,0.04720859]
[1767489564773,5.90090726,134.34,134.31,0.04720859]
[1767489564974,0.05037345,134.35,134.31,0.04720859]
[1767489565283,5.90090726,134.34,134.31,0.04720859]
[1767489565474,0.05037345,134.35,134.31,0.04720859]
[1767489565676,5.90047878,134.34,134.31,0.04720859]
[1767489565876,0.05037345,134.35,134.31,0.04720859]
[1767489566082,5.90047878,134.34,134.31,0.04720859]
[1767489566384,3.89203131,134.35,134.31,0.04720859]
[1767489566586,5.90009565,134.34,134.31,0.04720859]
[1767489566783,3.89203131,134.35,134.31,0.04720859]
[1767489566987,5.9000972,134.34,134.31,0.04720859]
[1767489567285,3.89203131,134.35,134.31,0.04720859]
[1767489567474,5.8997617,134.34,134.31,0.04720859]
[1767489567681,3.89203131,134.35,134.31,0.04720859]
[1767489567980,5.89976325,134.34,134.31,0.04720859]
[1767489568179,3.89203131,134.35,134.31,0.04720859]
[1767489568380,5.89927424,134.34,134.31,0.04720859]
[1767489568582,3.89203131,134.35,134.31,0.04720859]
[1767489568780,5.89927269,134.34,134.31,0.04720859]
[1767489568983,3.89203131,134.35,134.31,0.04720859]
[1767489569176,5.89803713,134.34,134.31,0.04720859]
[1767489569380,3.89203131,134.35,134.31,0.04720859]
[1767489569582,5.89757618,134.34,134.31,0.04720859]
[1767489569789,3.89203131,134.35,134.31,0.04720859]
[1767489570085,10.97310894,134.34,134.26,1.20794164]
[1767489570286,5.89757618,134.33,134.26,1.20794164]
[1767489570491,5.07553276,134.34,134.26,1.20794164]
[1767489570681,9.76481872,134.33,134.25,110.71742093]
[1767489570884,0.0500041,134.3,134.28,0.05215985]
[1767489575591,3.69825379,134.3,134.25,16.05082093]
[1767489576091,4.90619543,134.3,134.25,16.05082093]
[1767489576590,4.90619543,134.3,134.26,0.04684201]
[1767489578293,3.69825379,134.3,134.26,0.04684201]
[1767489582193,0.2926525,134.26,134.2,3.7106099]
[1767489582393,5.88765946,134.25,134.2,3.7106099]
[1767489582596,1.50059414,134.26,134.2,3.7106099]
[1767489583199,0.05236224,134.24,134.2,3.7106099]
[1767489583897,1.26030388,134.24,134.17,3.7106099]
[1767489585294,0.05236224,134.24,134.18,3.7106099]
[1767489585995,0.34368317,134.24,134.18,3.7106099]
[1767489590003,1.50524778,134.23,134.18,3.7106099]
[1767489591104,0.30067109,134.22,134.16,3.7106099]
[1767489591299,0.04694909,134.2,134.16,3.7106099]
[1767489591604,0.04694909,134.2,134.14,3.7106099]
[1767489592098,0.04694909,134.2,134.15,4.91855154]
[1767489592302,0.04694909,134.2,134.16,3.7106099]
[1767489592500,1.20794164,134.19,134.13,3.7106099]
[1767489595811,0.35423455,134.2,134.16,3.7106099]
[1767489595812,0.04694909,134.2,134.16,3.7106099]
[1767489596510,1.20794164,134.25,134.18,3.7106099]
[1767489597002,1.53110962,134.23,134.14,3.7106099]
[1767489597204,0.32316798,134.22,134.14,4.91855154]
[1767489597405,1.20794164,134.21,134.14,3.7106099]
[1767489597603,0.04917646,134.19,134.17,0.04694909]
[1767489601314,0.29793602,134.18,134.11,4.02200729]
[1767489601511,1.20794164,134.17,134.11,4.02200729]
[1767489602211,1.50877576,134.17,134.11,4.02200729]
[1767489602419,0.05533867,134.15,134.11,4.02200729]
[1767489603027,0.30369894,134.2,134.11,4.02200729]
[1767489603230,1.20794164,134.18,134.11,4.02200729]
[1767489603432,1.20794164,134.18,134.12,4.02200729]
[1767489604132,0.05437312,134.16,134.14,0.05533867]
[1767489604429,1.20794164,134.2,134.14,4.07734596]
[1767489605338,89.26794164,134.23,134.16,4.02200729]
[1767489605725,88.06,134.23,134.16,4.02200729]
[1767489606033,88.47921741,134.23,134.16,4.02200729]
[1767489606234,89.68715905,134.23,134.16,4.02200729]
[1767489606433,0.04827223,134.21,134.18,0.05206652]
[1767489610241,0.04827223,134.21,134.16,4.02200729]
[1767489611340,0.04827223,134.21,134.17,0.05663744]
[1767489612440,0.4742051,134.21,134.17,0.05663744]
[1767489612636,105.97273707,134.17,134.1,4.02200729]
[1767489612940,1.20794164,134.15,134.07,5.22994893]
[1767489613145,1.20794164,134.15,134.08,4.02200729]
[1767489613646,0.04755977,134.13,134.1,0.04942985]
[1767489617245,7.08039543,134.17,134.11,4.02200729]
[1767489618149,0.05306126,134.15,134.11,4.02200729]
[1767489618850,0.46991646,134.15,134.1,0.04942985]
[1767489619045,1.62479684,134.14,134.1,0.04942985]
[1767489619348,5.84880712,134.13,134.06,4.02200729]
[1767489619648,1.62479684,134.14,134.06,4.02200729]
[1767489619948,5.8490626,134.13,134.06,4.02200729]
[1767489620242,0.04999503,134.11,134.08,0.05368626]
[1767489622939,1.20794164,134.15,134.08,4.07569355]
[1767489623135,1.20794164,134.11,134.02,1.20794164]
[1767489623342,1.20794164,134.09,134.03,4.02200729]
[1767489624152,7.12506397,134.15,134.07,4.02200729]
[1767489624342,7.47268938,134.14,134.07,4.02200729]
[1767489624541,0.05393978,134.12,134.1,0.05139461]
[1767489625452,1.20794164,134.18,134.1,5.28134354]
[1767489625759,5.85388075,134.17,134.11,4.02200729]
[1767489625961,1.20794164,134.18,134.11,4.02200729]
[1767489626251,5.85571208,134.17,134.11,4.02200729]
[1767489626452,0.04828968,134.15,134.13,0.0493691]
[1767489626647,0.04828968,134.15,134.08,4.02200729]
[1767489627047,1.20794164,134.14,134.08,4.02200729]
[1767489627444,5.86460791,134.13,134.08,4.02200729]
[1767489627639,0.05201616,134.12,134.09,0.05253646]
[1767489628747,0.05201616,134.12,134.09,4.07454375]
[1767489629057,1.20794164,134.15,134.09,4.07454375]
[1767489629247,5.88834542,134.14,134.09,4.07454375]
[1767489629446,1.20794164,134.15,134.09,4.07454375]
[1767489629655,5.88953681,134.14,134.09,4.07454375]
[1767489629955,0.05522639,134.13,134.09,4.07454375]
[1767489631458,90.59225562,134.19,134.1,3.71857914]
[1767489631755,5.89173027,134.18,134.1,3.71857914]
[1767489631958,5.89173027,134.17,134.1,3.71857914]
[1767489632152,88.69908505,134.19,134.1,3.71857914]
[1767489632352,0.05134922,134.16,134.13,0.05065999]
[1767489634653,88.12,134.19,134.13,4.05343382]
[1767489634955,2.52062447,134.17,134.09,4.00277383]
[1767489635258,5.89548051,134.16,134.09,4.00277383]
[1767489635457,0.6274539,134.17,134.09,4.00277383]
[1767489635658,5.89632914,134.16,134.09,4.00277383]
[1767489635952,0.6274539,134.17,134.11,0.05161646]
[1767489636156,0.05620284,134.14,134.11,0.05161646]
[1767489636354,0.68365674,134.19,134.11,4.05439029]
[1767489636662,5.8978234,134.18,134.11,4.05439029]
[1767489636848,5.8978234,134.17,134.11,4.05439029]
[1767489637048,7.39375674,134.19,134.11,4.05439029]
[1767489637249,6.58479749,134.18,134.11,4.05439029]
[1767489637460,0.05654702,134.16,134.11,4.05439029]
[1767489646658,0.74020376,134.16,134.09,4.00277383]
[1767489646857,0.68365674,134.14,134.07,4.00277383]
[1767489647256,6.7131,134.13,134.07,4.00277383]
[1767489647556,6.7131,134.13,134.04,4.00277383]
[1767489647557,0.68365674,134.11,134.04,4.00277383]
[1767489647758,5.90694324,134.1,134.04,4.00277383]
[1767489647962,3.70199923,134.08,133.97,1.89317057]
[1767489648157,5.90500361,134.07,133.97,1.89317057]
[1767489648461,3.70199923,134.03,133.95,17.93534991]
[1767489649057,0.04738024,134.0,133.98,0.04908599]
[1767489649258,3.70199923,134.03,133.98,0.04908599]
[1767489650358,0.05727445,134.02,133.98,0.04908599]
[1767489650865,10.41799923,134.07,133.98,4.05185982]
[1767489651169,3.70199923,134.1,133.98,4.00277383]
[1767489651466,5.8866463,134.09,133.98,4.00277383]
[1767489651674,202.98349923,134.1,133.99,4.00277383]
[1767489651968,0.04805583,134.06,134.03,0.05178757]
[1767489660670,0.04805583,134.06,134.0,4.00277383]
[1767489661171,3.88816907,134.06,133.97,3.80431711]
[1767489661472,3.84011324,134.06,133.97,3.80431711]
[1767489661783,0.05610614,134.03,134.0,0.05562784]
[1767489662871,3.84011324,134.08,134.0,3.85994495]
[1767489663275,92.00011324,134.08,134.0,3.85994495]
[1767489663980,0.05160666,134.05,134.0,3.85994495]
[1767489667786,88.16,134.09,134.0,3.85994495]
[1767489668084,88.16,134.13,134.02,3.80431711]
[1767489668282,5.88976773,134.12,134.02,3.80431711]
[1767489668587,88.16,134.13,134.02,3.80431711]
[1767489668788,5.89053167,134.12,134.02,3.80431711]
[1767489668988,5.89053167,134.12,134.01,104.5138]
[1767489668989,0.05152877,134.09,134.06,0.04869991]
[1767489670074,0.05152877,134.09,134.06,3.85301702]
[1767489670276,88.16,134.13,134.06,3.85301702]
[1767489670977,94.8732,134.13,134.06,3.85301702]
[1767489671172,0.04915054,134.11,134.06,3.85301702]
[1767489672392,12.42195862,134.15,134.06,3.85301702]
[1767489672689,3.84011324,134.18,134.09,3.80431711]
[1767489673685,0.05080448,134.15,134.12,0.05350016]
[1767489683787,3.84011324,134.13,134.05,3.80431711]
[1767489684800,0.05526889,134.1,134.08,0.05559366]
[1767489690212,10.55281324,134.14,134.08,0.05559366]
[1767489691002,104.4031,134.16,134.08,3.80747774]
[1767489691003,10.48500113,134.16,134.08,3.80747774]
[1767489691198,0.04874113,134.13,134.08,3.80747774]
[1767489692606,4.05130022,134.13,134.08,0.05559366]
[1767489693404,10.71665909,134.11,134.03,3.8084553]
[1767489694105,4.00255909,134.07,133.98,3.8084553]
[1767489694613,0.05566897,134.04,134.01,0.05430591]
[1767489697509,6.7156,134.08,134.01,3.86276121]
[1767489698512,0.05224326,134.06,134.01,3.86276121]
[1767489700017,0.05224326,134.06,134.01,0.05430591]
[1767489702311,0.05224326,134.06,134.01,3.86276121]
[1767489712423,5.26786008,134.06,134.01,0.05430591]
[1767489712619,4.00255909,134.05,134.01,0.05430591]
[1767489713128,5.21561682,134.05,134.01,0.05430591]
[1767489714229,0.05224326,134.06,134.01,0.05430591]
[1767489718229,0.05224326,134.06,134.01,3.86276121]
[1767489719822,0.05224326,134.06,134.02,3.8084553]
[1767489721017,1.21305773,134.11,134.02,3.8084553]
[1767489721225,5.28147915,134.11,134.02,3.8084553]
[1767489721620,1.21305773,134.12,134.05,1.21305773]
[1767489721825,1.21305773,134.12,134.06,3.70345035]
[1767489722027,0.05110859,134.1,134.08,0.04823735]
[1767489725128,93.44147915,134.15,134.08,3.7516877]
[1767489725528,93.44147915,134.15,134.08,4.96474543]
[1767489725723,93.44147915,134.15,134.09,3.70345035]
[1767489725929,88.16,134.15,134.09,3.70345035]
[1767489726130,0.04948046,134.13,134.09,3.70345035]
[1767489726330,0.04948046,134.13,134.1,0.05732385]
[1767489727131,5.28147915,134.17,134.1,3.7607742]
[1767489727437,5.91836464,134.16,134.1,3.7607742]
[1767489727731,5.28147915,134.17,134.1,4.97383193]
[1767489727928,5.91958434,134.16,134.1,4.97383193]
[1767489728125,0.05580337,134.14,134.1,0.05732385]
[1767489732436,6.7104,134.19,134.13,3.70345035]
[1767489732437,4.06842142,134.19,134.13,3.70345035]
[1767489733536,0.05226202,134.17,134.15,0.05160781]
[1767489736134,4.12068344,134.17,134.1,1.21305773]
[1767489736446,4.06842142,134.16,134.1,1.21305773]
[1767489736833,6.7124,134.14,134.05,10.41995035]
[1767489737035,5.28147915,134.1,134.03,1.21305773]
[1767489737243,4.06842142,134.1,134.02,3.70345035]
[1767489737435,0.05351983,134.08,134.05,0.05487589]
[1767489738039,0.05351983,134.08,134.05,3.75832624]
[1767489738246,5.28147915,134.12,134.05,3.75832624]
[1767489740046,5.28147915,134.12,134.05,4.97138397]
[1767489740247,5.28147915,134.12,134.06,3.70345035]
[1767489740850,4.06842142,134.12,134.06,3.70345035]
[1767489741045,11.99417915,134.14,134.06,3.70345035]
[1767489741246,5.90969178,134.13,134.06,3.70345035]
[1767489741547,11.99417915,134.14,134.09,0.05143257]
[1767489741751,5.90911753,134.13,134.09,0.05143257]
[1767489742047,11.99417915,134.14,134.09,0.05143257]
[1767489742346,0.05433989,134.12,134.09,0.05143257]
[1767489753544,11.98794886,134.12,134.05,3.87471807]
[1767489753750,4.00695124,134.11,134.05,3.87471807]
[1767489754745,0.05482415,134.09,134.07,0.05601395]
[1767489755456,0.05482415,134.09,134.03,3.87471807]
[1767489755748,92.14695124,134.11,134.03,3.87471807]
[1767489756144,6.7146,134.1,134.03,3.87471807]
[1767489756547,88.14,134.11,134.05,3.92458991]
[1767489757752,0.0570959,134.09,134.05,3.92458991]
[1767489760858,88.14,134.11,134.05,3.92458991]
[1767489761757,0.05532689,134.09,134.05,3.92458991]
[1767489762458,4.00695124,134.13,134.05,3.92458991]
[1767489762661,5.90674287,134.12,134.05,3.92458991]
[1767489762961,5.90674287,134.11,134.05,3.92458991]
[1767489763259,4.00695124,134.13,134.05,3.92458991]
[1767489763460,0.05273356,134.1,134.05,3.92458991]
[1767489765058,96.74707259,134.14,134.06,3.87471807]
[1767489765250,5.91163823,134.13,134.06,3.87471807]
[1767489765449,5.91163823,134.12,134.06,3.87471807]